Cogmind - Beta 13 @@@ ROGUE MODE // 2024.04.30 @ 20:04:05 Player: satan5 Result: Destroyed by 8Z-3DC(R) with Subdweller Beam Cannon Performance ------------- Evolutions (0) 0 Regions Visited (2) 400 Robots Destroyed (29) 145 Value Destroyed (844) 844 Prototype IDs (12) 240 Alien Tech Used (0) 0 Bonus (-20) -20 TOTAL SCORE: 1609 Bonus ------- Friendly Fire -20 Cogmind --------- Core Integrity 0/250 Matter 285/300 Energy 181/200 System Corruption 2% Temperature Cool (9) Movement Treading (160) Location -10/Subcaves Parts ------- > --- POWER (1) -------- Subdweller Power Source > --- PROPULSION (2) --- Improved Treads Spiked Treads > --- UTILITY (2) ------ Large Storage Unit Structural Scanner > --- WEAPON (2) ------- Subdweller Laser Subdweller Machine Gun > --- INVENTORY (15) --- Subdweller Power Source Light Treads Improved Treads Spiked Treads High-capacity Storage Unit Subdweller Optics Improved Terrain Scanner Armor Integrity Analyzer Rainbow Chip Subdweller Laser Battle Rifle Battle Rifle Subdweller Machine Gun Mining Laser Makeshift Spear Peak State ------------ > --- POWER ------------ Subdweller Power Source > --- PROPULSION ------- Improved Treads Spiked Treads > --- UTILITY ---------- Large Storage Unit Structural Scanner > --- WEAPON ----------- Subdweller Laser Subdweller Machine Gun > --- INVENTORY -------- Subdweller Power Source Light Treads Improved Treads Spiked Treads High-capacity Storage Unit Subdweller Optics Improved Terrain Scanner Armor Integrity Analyzer Rainbow Chip Subdweller Laser Battle Rifle Subdweller Machine Gun Mining Laser Makeshift Spear [Rating: 16] Favorites ----------- Power Ion Engine Engine Ion Engine Propulsion Light Treads Treads Light Treads Utility Large Storage Unit Device Structural Scanner Storage Large Storage Unit Weapon Particle Cannon Energy Gun Subdweller Laser Energy Cannon Particle Cannon Ballistic Gun Subdweller Machine Gun Build | -11 -10 -10 ------- Run | Yrd Mat Sub Slots Evolved . | . . . Power . | . . . Propulsion . | . . . Utility . | . . . Weapon . | . . . Parts Attached 30 | 6 12 12 Power 3 | 1 . 2 Engine 3 | 1 . 2 Core . | . . . Reactor . | . . . Propulsion 6 | 2 1 3 Treads 6 | 2 1 3 Leg . | . . . Wheel . | . . . Hover . | . . . Flight . | . . . Utility 5 | 1 4 . Device 2 | . 2 . Storage 3 | 1 2 . Processor . | . . . Hackware . | . . . Protection . | . . . Artifact . | . . . Weapon 16 | 2 7 7 Energy Gun 1 | . . 1 Energy Cannon 7 | . 5 2 Ballistic Gun 8 | 2 2 4 Ballistic Cannon . | . . . Launcher . | . . . Special Weapon . | . . . Impact Weapon . | . . . Slashing Weapon . | . . . Piercing Weapon . | . . . Special Melee Weapon . | . . . Unidentified Prototypes . | . . . Parts Lost 11 | . 1 10 Power 2 | . . 2 Propulsion 4 | . 1 3 Utility . | . . . Weapon 5 | . . 5 Highest Loss Streak 3 | . 1 3 To Critical Strikes . | . . . Average Slot Usage (%) 99 | . 98 99 Engine 13 | . 14 13 Treads 27 | . 27 27 Device 13 | . 12 14 Storage 14 | . 14 14 Energy Gun 1 | . . 3 Energy Cannon 13 | . 18 8 Ballistic Gun 12 | . 9 16 Naked Turns . | . . . Heaviest Build 50 | 14 50 34 Greatest Support 46 | 40 43 46 Greatest Overweight (x) 1 | . 1 1 Average Overweight (x) . | . . . Largest Inventory Capacity 20 | 8 20 15 Average Capacity 14 | 7 13 15 Most Carried 15 | 5 15 15 Average Carried 12 | 2 12 13 Final Capacity 15 | 8 15 15 Final Carried 15 | 4 14 15 Class Distribution -------------------- 100% | Mutant Dominant Class ---------------- Mutant | -10/Materials Mutant | -10/Subcaves Resources | -11 -10 -10 ----------- Run | Yrd Mat Sub Matter Collected 769 | 223 347 199 Remotely . | . . . Salvage Created 1086 | 58 658 370 Parts 63 | 5 33 25 Haulers Intercepted 1 | . 1 . Recyclers Shooed 1 | . 1 . Parts Field Recycled . | . . . Retrieved Matter . | . . . Parts Self-Destructed 8 | . . 8 Prevented . | . . . Kills | -11 -10 -10 ------- Run | Yrd Mat Sub Combat Hostiles Destroyed 20 | . 10 10 Guns 4 | . 1 3 Cannons 16 | . 9 7 Classes Destroyed 7 | 1 5 1 Worker 1 | . 1 . Tunneler 3 | 3 . . Hauler 1 | . 1 . Recycler 1 | . 1 . Watcher 3 | . 3 . Grunt 10 | . 10 . Subdweller 10 | . . 10 Best Kill Streak 4 | 3 3 4 Combat Bots Only 4 | . 2 4 Max Kills in Single Turn 2 | 1 2 1 Gunslinging . | . . . Exploded . | . . . Melee . | . . . Uniques/NPCs Destroyed . | . . . Combat | -11 -10 -10 -------- Run | Yrd Mat Sub Hostile Shots Fired 103 | . 43 60 Missed 22 | . 10 12 Damage Taken 1704 | . 384 1320 Core 263 | . 90 173 Absorbed by Shields . | . . . Core Remaining (%) 100 | 100 . . Volleys Fired 106 | 6 45 55 Largest 2 | 2 2 2 Hottest 136 | 40 136 136 Shots Fired 210 | 12 88 110 Gun 95 | 12 26 57 Cannon 115 | . 62 53 Launcher . | . . . Special . | . . . Kinetic 78 | 12 26 40 Thermal 132 | . 62 70 Explosive . | . . . Electromagnetic . | . . . Robot Hit Streak 39 | 5 7 39 Robot Miss Streak 3 | 1 3 1 Penetration Max . | . . . Secondary Targets . | . . . Shots Hit Robots 124 | 7 47 70 Core Hits 40 | 3 19 18 Critical Kills 2 | . 1 1 Critical Parts Destroyed . | . . . Critical Strikes 2 | . 1 1 Meltdown 1 | . 1 . Destroy 1 | . . 1 Melee Attacks . | . . . Impact . | . . . Slashing . | . . . Piercing . | . . . Sneak Attacks . | . . . Combat Hostiles . | . . . Follow-up Attacks . | . . . Damage Inflicted 2401 | 98 892 1411 Guns 988 | 98 176 714 Cannons 1413 | . 716 697 Explosions . | . . . Melee . | . . . Ramming . | . . . Kinetic 788 | 98 176 514 Thermal 1613 | . 716 897 Explosive . | . . . Electromagnetic . | . . . Impact . | . . . Slashing . | . . . Piercing . | . . . Highest Corruption 2 | . 2 2 Average Corruption 2 | . 2 2 Corruption Purged . | . . . Corruption Blocked . | . . . Effects 20 | . 5 15 Message Errors 6 | . 3 3 Matter Fused 5 | . 1 4 Heat Flow Errors 3 | . . 3 Energy Discharges 2 | . 1 1 Data Loss (minor) 3 | . . 3 Data Loss (major) 1 | . . 1 Overload Shots . | . . . Overflow Damage 6 | . 6 . Projectiles 6 | . 6 . Explosions . | . . . Melee . | . . . Knockbacks . | . . . Impact . | . . . Kinetic . | . . . Secondary . | . . . Self-Inflicted Damage . | . . . Shots . | . . . Rammed . | . . . Targets Rammed . | . . . Kicked . | . . . Crushed . | . . . Highest Temperature 497 | . 497 227 Average Temperature 134 | . 175 40 Received Heat Transfer 381 | . 210 171 Effects 15 | . 15 . Shutdowns 1 | . 1 . Energy Bleed 1 | . 1 . Interference 6 | . 6 . Matter Decay 1 | . 1 . Damage (minor) 2 | . 2 . Damage (major) 4 | . 4 . Siege Activations . | . . . Robots Corrupted . | . . . Combat Hostiles . | . . . Parts Fried . | . . . Impact Corruptions . | . . . Robots Melted 1 | . 1 . Combat Hostiles . | . . . Parts Melted 4 | . 3 1 Heat Transferred 2803 | . 1295 1508 Parts Sabotaged . | . . . Parts Stolen . | . . . Parts Stripped . | . . . Power Chain Reactions . | . . . Alert | -11 -10 -10 ------- Run | Yrd Mat Sub Peak Influence 224 | 15 224 . Initial 9 | . 9 . Average 64 | 5 68 . Maximum Alert Level 1 | . 1 . Low Security (%) 96 | 100 96 . Level 1 3 | . 3 . Level 2 . | . . . Level 3 . | . . . Level 4 . | . . . Level 5 . | . . . High Security . | . . . Max Security . | . . . Squads Dispatched 2 | . 2 . Investigation 2 | . 2 . Extermination . | . . . Reinforcement . | . . . Assault . | . . . Garrison . | . . . Intercept . | . . . Searches Triggered . | . . . Construction Impeded . | . . . Haulers Reinforced . | . . . Active Scanning Responses . | . . . Cargo Convoy Interrupts . | . . . Stealth | -11 -10 -10 --------- Run | Yrd Mat Sub Distress Signals 1 | . 1 . Communications Jammed . | . . . Distress Signals . | . . . Times Spotted 39 | . 23 16 Peak Tracking Total 5 | . 4 5 Tactical Retreats 2 | . 2 . Traps | -11 -10 -10 ------- Run | Yrd Mat Sub Traps Triggered 3 | . 2 1 Indirectly . | . . . Trap Hack Attempts . | . . . Triggered . | . . . Disarmed . | . . . Reprogrammed . | . . . Reused . | . . . Traps Extracted . | . . . Installed . | . . . Triggered . | . . . Machines | -11 -10 -10 ---------- Run | Yrd Mat Sub Machines Disabled 1 | . . 1 Max in Single Turn 1 | . . 1 Machines Repaired . | . . . Machines Dismantled . | . . . Machines Sabotaged . | . . . Overloaded Fab Kills . | . . . Hacking | -11 -10 -10 --------- Run | Yrd Mat Sub Machines Accessed 8 | . 7 1 Terminals 7 | . 7 . Fabricators . | . . . Repair Stations . | . . . Recycling Units . | . . . Scanalyzers . | . . . Garrison Access . | . . . Total Hacks 34 | . 25 9 Successful 23 | . 14 9 Failed 11 | . 11 . Catastrophic 2 | . 2 . Database Lockouts . | . . . Manual 18 | . 18 . Terminals 25 | . 25 . Fabricators . | . . . Repair Stations . | . . . Recycling Units . | . . . Scanalyzers . | . . . Garrison Access . | . . . Terminal Hacks 16 | . 7 9 Record 8 | . . 8 Prototype ID Bank 2 | . 2 . Unreport Threat 1 | . 1 . Locate Traps 1 | . 1 . Recall Investigation 1 | . 1 . Zone Layout 2 | . 2 . Derelict Proto ID Bank 1 | . . 1 Fabricator Hacks . | . . . Repair Station Hacks . | . . . Recycling Unit Hacks . | . . . Scanalyzer . | . . . Garrison Access Hacks . | . . . Unauthorized Hacks 7 | . 7 . Terminals 7 | . 7 . Track 2 | . 2 . Botnet 4 | . 4 . Disrupt 1 | . 1 . Fabricators . | . . . Repair Stations . | . . . Recycling Units . | . . . Scanalyzers . | . . . Garrison Access . | . . . Data Cores Recovered . | . . . Used . | . . . Hacking Detections 7 | . 7 . Full Trace Events 1 | . 1 . Feedback Events . | . . . Feedback Blocked . | . . . Robot Schematics Acquired . | . . . Robots Built . | . . . Authchips . | . . . Time . | . . . Total Robot Build Rating . | . . . Part Schematics Acquired . | . . . Parts Built . | . . . Authchips . | . . . Time . | . . . Total Part Build Rating . | . . . Parts Repaired . | . . . Time . | . . . Parts Recycled . | . . . Recycled Matter . | . . . Retrieved Matter . | . . . Retrieved Components . | . . . Parts Scanalyzed . | . . . Part Schematics Acquired . | . . . Parts Damaged . | . . . Bothacking | -11 -10 -10 ------------ Run | Yrd Mat Sub Used RIF Installer . | . . . Robots Hacked . | . . . Non-combat . | . . . Combat . | . . . Robot Hacks Applied . | . . . Relay Couplers Released . | . . . Fabnet Peak Effective % . | . . . Robots Rewired . | . . . Allies Hacked . | . . . Hacks Repelled . | . . . Allies | -11 -10 -10 -------- Run | Yrd Mat Sub Total Allies . | . . . Largest Group . | . . . Highest-Rated Group . | . . . Highest-Rated Ally . | . . . Total Orders . | . . . Ally Attacks . | . . . Total Damage . | . . . Kills . | . . . Allies Corrupted . | . . . Allies Melted . | . . . Intel | -11 -10 -10 ------- Run | Yrd Mat Sub Robot Analysis Total . | . . . Derelict Logs Recovered 1 | . . 1 Drone Launches . | . . . Drone Recoveries . | . . . Exploration | -11 -10 -10 ------------- Run | Yrd Mat Sub Turns Passed 2711 | 88 1328 1295 Spaces Moved 1326 | 42 616 668 Core 10 | 10 . . Treads 1316 | 32 616 668 Legs . | . . . Wheels . | . . . Hover . | . . . Flight . | . . . Fastest Speed 50 | 50 160 160 Average Speed 161 | 133 164 160 Slowest Speed 240 | 160 240 240 Overloaded Moves . | . . . Propulsion Burnouts . | . . . Robots Hopped . | . . . Cave-ins Triggered . | . . . Exploration Rate (%) 47 | 5 96 40 Regions Visited 2 Branch Regions 1 Pre-discovered Areas 1 | . . 1 Known Exits Taken . | . . . Unknown Exits Taken 2 | 1 1 . Scrap Searched 3 | . . 3 Spaces Dug . | . . . Terrain Destroyed . | . . . Melee . | . . . Projectile . | . . . AOE . | . . . Terrain Rammed . | . . . Walls Destroyed . | . . . Machines Disabled . | . . . Actions | -11 -10 -10 --------- Run | Yrd Mat Sub Total 1692 | 60 845 787 Wait 174 | . 147 27 Move 1324 | 41 615 668 Hop . | . . . Pick Up 43 | 7 18 18 Fast Attach 4 | 3 1 . Attach 17 | 3 4 10 Detach . | . . . Swap 9 | . 7 2 Drop 15 | . 8 7 Fire 106 | 6 45 55 Melee . | . . . Ram . | . . . Kick . | . . . Crush . | . . . Escape Stasis . | . . . Rewire . | . . . Trap . | . . . Miscellaneous . | . . . Route ------- -11/Scrapyard -10/Materials (discovered 5 exits: [*Mat x3] / [*Min] / *Sub) -10/Subcaves History --------- Turn | Location | Event 11 | -11/Scrapyard | Discovered new exit (range 15) 89 | -11/Scrapyard | Entered Materials 310 | -10/Materials | Build established: Mutant 402 | -10/Materials | Discovered new exit (range 3) 607 | -10/Materials | Discovered new exit (range 10) 886 | -10/Materials | Discovered new exit (range 9) 1225 | -10/Materials | Discovered new exit (range 15) 1408 | -10/Materials | Discovered new exit (range 8) 1417 | -10/Materials | Entered Subcaves 1765 | -10/Subcaves | Ambushed by swarm of Subdwellers 1765 | -10/Subcaves | Ambushed by Subdwellers from Twisted Machinery 1765 | -10/Subcaves | Ambushed by Subdwellers from Twisted Machinery 1814 | -10/Subcaves | Lost 4 allies 1839 | -10/Subcaves | Core integrity fell below 50% 1871 | -10/Subcaves | Lost 3 parts (1n2w) 2165 | -10/Subcaves | Visited 4L-MR0's lab 2187 | -10/Subcaves | Found Rainbow Chip 2415 | -10/Subcaves | Core integrity fell below 20% 2481 | -10/Subcaves | Shifting Twisted Machinery released Spk. Treads 2506 | -10/Subcaves | Shifting Twisted Machinery released Battle Rifle 2712 | -10/Subcaves | Destroyed by 8Z-3DC(R) with Subdweller Beam Cannon Last Messages --------------- 02423_ Q6-DHK(R) destroyed. 02444_ Acquired 16 matter. Spk. Treads falls loose from the Twisted Machinery. 02487_ Acquired Spk. Treads. 02498_ System corrupted: Heat flow error (+236). Battle Rifle falls loose from the Twisted Machinery. 02560_ Lgt. Ion Engine destroyed. 02564_ R1-5IW(R) suffers critical hit (Destroy). 02564_ R1-5IW(R) destroyed. 02567_ XT-IC3(R) destroyed. 02570_ Acquired 23 matter. 02573_ Acquired Sub. Machine Gun. 02579_ Acquired 5 matter. 02581_ System corrupted: Matter fused (-9). 02607_ Acquired Battle Rifle. 02627_ Acquired 20 matter. 02655_ 5S50XNZCEPDBYPNWDJ VQM: WA|<4